[Event "Titled Tuesday Blitz March 28 Early 2023"]
[White "Pein, Jonathan"]
[Black "Ruge, Edison"]
[WhiteFideId "417092"]
[BlackFideId "4401000"]
[WhiteElo "2151"]
[BlackElo "2175"]
[Result "1-0"]
[Round "06"]
[TimeControl "180+2"]
[Date "2023.03.28"]
[WhiteClock "0:00:05"]
[BlackClock "0:00:05"]

1. e4 {[%clk 0:02:59]}  e5 {[%clk 0:03:00]} 2. Nf3 {[%clk 0:02:58]}  Nc6 {[%clk 0:03:00]} 3. Bb5 {[%clk 0:02:57]}  f5 {[%clk 0:03:00]} 4. d3 {[%clk 0:02:44]}  fxe4 {[%clk 0:03:00]} 5. dxe4 {[%clk 0:02:45]}  Nf6 {[%clk 0:03:00]} 6. Bg5 {[%clk 0:02:44]}  Bc5 {[%clk 0:02:58]} 7. Nc3 {[%clk 0:02:42]}  d6 {[%clk 0:02:57]} 8. Nd5 {[%clk 0:02:41]}  O-O {[%clk 0:02:55]} 9. Nxf6+ {[%clk 0:02:41]}  gxf6 {[%clk 0:02:54]} 10. Bc4+ {[%clk 0:02:33]}  Kh8 {[%clk 0:02:51]} 11. Bh6 {[%clk 0:02:34]}  Rg8 {[%clk 0:02:43]} 12. Bxg8 {[%clk 0:02:32]}  Qxg8 {[%clk 0:02:43]} 13. Nh4 {[%clk 0:02:06]}  Bg4 {[%clk 0:02:39]} 14. f3 {[%clk 0:02:06]}  Be6 {[%clk 0:02:35]} 15. Qd2 {[%clk 0:02:06]}  Qf7 {[%clk 0:02:12]} 16. g4 {[%clk 0:02:01]}  Nd4 {[%clk 0:02:06]} 17. c3 {[%clk 0:01:57]}  Nc6 {[%clk 0:01:59]} 18. Be3 {[%clk 0:01:39]}  Bxe3 {[%clk 0:01:43]} 19. Qxe3 {[%clk 0:01:40]}  d5 {[%clk 0:01:43]} 20. exd5 {[%clk 0:01:40]}  Bxd5 {[%clk 0:01:42]} 21. b3 {[%clk 0:01:19]}  Nd8 {[%clk 0:01:22]} 22. Rd1 {[%clk 0:01:13]}  Bc6 {[%clk 0:01:19]} 23. O-O {[%clk 0:00:54]}  Ne6 {[%clk 0:01:19]} 24. Ng2 {[%clk 0:00:38]}  Rg8 {[%clk 0:01:17]} 25. Kf2 {[%clk 0:00:30]}  Ng5 {[%clk 0:01:09]} 26. Ke2 {[%clk 0:00:27]}  Qg6 {[%clk 0:01:02]} 27. h4 {[%clk 0:00:26]}  Nxf3 {[%clk 0:00:58]} 28. g5 {[%clk 0:00:20]}  e4 {[%clk 0:00:54]} 29. Nf4 {[%clk 0:00:18]}  Qf5 {[%clk 0:00:51]} 30. Rxf3 {[%clk 0:00:15]}  exf3+ {[%clk 0:00:50]} 31. Kf2 {[%clk 0:00:16]}  h5 {[%clk 0:00:40]} 32. Qd4 {[%clk 0:00:13]}  Rf8 {[%clk 0:00:37]} 33. Re1 {[%clk 0:00:10]}  Qg4 {[%clk 0:00:35]} 34. Ng6+ {[%clk 0:00:07]}  Kg8 {[%clk 0:00:34]} 35. Qxg4 {[%clk 0:00:08]}  hxg4 {[%clk 0:00:33]} 36. Nxf8 {[%clk 0:00:08]}  Kxf8 {[%clk 0:00:33]} 37. gxf6 {[%clk 0:00:09]}  Kf7 {[%clk 0:00:32]} 38. Re7+ {[%clk 0:00:06]}  Kxf6 {[%clk 0:00:32]} 39. Rxc7 {[%clk 0:00:07]}  Kf5 {[%clk 0:00:32]} 40. Rf7+ {[%clk 0:00:07]}  Kg6 {[%clk 0:00:31]} 41. Rf8 {[%clk 0:00:07]}  Kh5 {[%clk 0:00:30]} 42. Rh8+ {[%clk 0:00:07]}  Kg6 {[%clk 0:00:29]} 43. Kg3 {[%clk 0:00:08]}  Bd7 {[%clk 0:00:23]} 44. Rg8+ {[%clk 0:00:06]}  Kf6 {[%clk 0:00:20]} 45. Rf8+ {[%clk 0:00:06]}  Kg6 {[%clk 0:00:20]} 46. Rf4 {[%clk 0:00:06]}  Kh5 {[%clk 0:00:19]} 47. c4 {[%clk 0:00:05]}  a6 {[%clk 0:00:18]} 48. b4 {[%clk 0:00:05]}  Bc8 {[%clk 0:00:17]} 49. Rf7 {[%clk 0:00:04]}  Be6 {[%clk 0:00:15]} 50. Rh7+ {[%clk 0:00:04]}  Kg6 {[%clk 0:00:14]} 51. Rxb7 {[%clk 0:00:05]}  Kf5 {[%clk 0:00:14]} 52. c5 {[%clk 0:00:05]}  Bxa2 {[%clk 0:00:09]} 53. Rb6 {[%clk 0:00:04]}  Bc4 {[%clk 0:00:09]} 54. c6 {[%clk 0:00:04]}  Ke4 {[%clk 0:00:09]} 55. c7 {[%clk 0:00:04]}  Ke3 {[%clk 0:00:09]} 56. c8=Q {[%clk 0:00:05]}  f2 {[%clk 0:00:09]} 57. Qxc4 {[%clk 0:00:05]}  Kd2 {[%clk 0:00:07]} 58. Rd6+ {[%clk 0:00:05]}  Ke3 {[%clk 0:00:05]} 59. Qe6# {[%clk 0:00:05]} 1-0


[Site "https://www.chess.com"]

[Event "Titled Tuesday Blitz March 28 Early 2023"]
[White "Rodriguez Santiago, Jaime"]
[Black "Manukian, Artak"]
[WhiteFideId "3100898"]
[BlackFideId "13301373"]
[WhiteElo "2025"]
[BlackElo "2130"]
[Result "1-0"]
[Round "06"]
[TimeControl "180+2"]
[Date "2023.03.28"]
[WhiteClock "0:00:51"]
[BlackClock "0:01:33"]

1. c4 {[%clk 0:03:00]}  g6 {[%clk 0:02:59]} 2. Nc3 {[%clk 0:03:01]}  Bg7 {[%clk 0:03:00]} 3. g3 {[%clk 0:03:01]}  d6 {[%clk 0:03:00]} 4. Bg2 {[%clk 0:03:01]}  Nf6 {[%clk 0:03:00]} 5. e4 {[%clk 0:03:01]}  O-O {[%clk 0:03:00]} 6. Nge2 {[%clk 0:03:02]}  c5 {[%clk 0:03:01]} 7. O-O {[%clk 0:03:02]}  e5 {[%clk 0:03:01]} 8. d3 {[%clk 0:03:01]}  Nc6 {[%clk 0:03:01]} 9. h3 {[%clk 0:03:01]}  Nd4 {[%clk 0:03:01]} 10. Be3 {[%clk 0:02:54]}  Rb8 {[%clk 0:03:01]} 11. f4 {[%clk 0:02:52]}  a6 {[%clk 0:03:00]} 12. f5 {[%clk 0:02:48]}  b5 {[%clk 0:02:58]} 13. b3 {[%clk 0:02:41]}  bxc4 {[%clk 0:02:58]} 14. dxc4 {[%clk 0:02:40]}  Bb7 {[%clk 0:02:56]} 15. Bg5 {[%clk 0:02:27]}  Qa5 {[%clk 0:02:49]} 16. Bxf6 {[%clk 0:02:24]}  Bxf6 {[%clk 0:02:48]} 17. Nxd4 {[%clk 0:02:21]}  cxd4 {[%clk 0:02:48]} 18. Nd5 {[%clk 0:02:20]}  Bxd5 {[%clk 0:02:48]} 19. exd5 {[%clk 0:02:21]}  Kg7 {[%clk 0:02:45]} 20. Qf3 {[%clk 0:02:10]}  Qc3 {[%clk 0:02:40]} 21. Qxc3 {[%clk 0:01:47]}  dxc3 {[%clk 0:02:39]} 22. Be4 {[%clk 0:01:48]}  Bg5 {[%clk 0:02:33]} 23. Rf3 {[%clk 0:01:46]}  Bd2 {[%clk 0:02:32]} 24. Raf1 {[%clk 0:01:39]}  f6 {[%clk 0:02:26]} 25. Bc2 {[%clk 0:01:32]}  a5 {[%clk 0:02:25]} 26. g4 {[%clk 0:01:23]}  g5 {[%clk 0:02:24]} 27. Kg2 {[%clk 0:01:22]}  Rb4 {[%clk 0:02:19]} 28. a3 {[%clk 0:01:14]}  Rb6 {[%clk 0:02:18]} 29. Rb1 {[%clk 0:01:15]}  Rfb8 {[%clk 0:02:17]} 30. Kf1 {[%clk 0:01:11]}  h5 {[%clk 0:02:07]} 31. Ke2 {[%clk 0:01:10]}  hxg4 {[%clk 0:02:06]} 32. hxg4 {[%clk 0:01:10]}  Rh8 {[%clk 0:02:07]} 33. Kd3 {[%clk 0:01:09]}  Rh4 {[%clk 0:02:01]} 34. Rg1 {[%clk 0:01:06]}  Rb8 {[%clk 0:01:57]} 35. Rg2 {[%clk 0:01:05]}  Re8 {[%clk 0:01:56]} 36. Rf1 {[%clk 0:00:58]}  e4+ {[%clk 0:01:54]} 37. Ke2 {[%clk 0:00:55]}  e3 {[%clk 0:01:53]} 38. b4 {[%clk 0:00:53]}  axb4 {[%clk 0:01:53]} 39. axb4 {[%clk 0:00:54]}  Re4 {[%clk 0:01:46]} 40. Bxe4 {[%clk 0:00:52]}  c2 {[%clk 0:01:33]} 41. Bxc2 {[%clk 0:00:51]} 1-0


[Site "https://www.chess.com"]

[Event "Titled Tuesday Blitz March 28 Early 2023"]
[White "Nguyen Hong Nhung"]
[Black "babbilator"]
[WhiteFideId "12412201"]
[WhiteElo "1904"]
[BlackElo "2244"]
[Result "0-1"]
[Round "06"]
[TimeControl "180+2"]
[Date "2023.03.28"]
[WhiteClock "0:00:03"]
[BlackClock "0:00:11"]

1. e4 {[%clk 0:03:00]}  c5 {[%clk 0:02:57]} 2. Nc3 {[%clk 0:03:00]}  Nc6 {[%clk 0:02:55]} 3. f4 {[%clk 0:02:58]}  e6 {[%clk 0:02:55]} 4. Nf3 {[%clk 0:02:58]}  Nge7 {[%clk 0:02:53]} 5. e5 {[%clk 0:02:54]}  d6 {[%clk 0:02:48]} 6. exd6 {[%clk 0:02:40]}  Nf5 {[%clk 0:02:46]} 7. g3 {[%clk 0:02:33]}  Bxd6 {[%clk 0:02:32]} 8. Bg2 {[%clk 0:02:33]}  h5 {[%clk 0:02:26]} 9. d3 {[%clk 0:02:28]}  Be7 {[%clk 0:02:23]} 10. O-O {[%clk 0:02:15]}  h4 {[%clk 0:02:15]} 11. g4 {[%clk 0:02:15]}  h3 {[%clk 0:02:11]} 12. Bh1 {[%clk 0:02:15]}  Nh6 {[%clk 0:02:03]} 13. g5 {[%clk 0:01:42]}  Nf5 {[%clk 0:01:55]} 14. Re1 {[%clk 0:01:36]}  Qc7 {[%clk 0:01:51]} 15. Qe2 {[%clk 0:01:29]}  Bd7 {[%clk 0:01:35]} 16. a3 {[%clk 0:00:59]}  Ncd4 {[%clk 0:01:27]} 17. Nxd4 {[%clk 0:00:55]}  Nxd4 {[%clk 0:01:21]} 18. Qf2 {[%clk 0:00:54]}  O-O-O {[%clk 0:01:16]} 19. Be3 {[%clk 0:00:51]}  Nf5 {[%clk 0:01:10]} 20. Ne4 {[%clk 0:00:48]}  Bc6 {[%clk 0:01:02]} 21. Bf3 {[%clk 0:00:17]}  f6 {[%clk 0:00:45]} 22. gxf6 {[%clk 0:00:13]}  gxf6 {[%clk 0:00:42]} 23. Kf1 {[%clk 0:00:12]}  Nh4 {[%clk 0:00:37]} 24. Bh1 {[%clk 0:00:11]}  f5 {[%clk 0:00:35]} 25. Ng3 {[%clk 0:00:11]}  Bxh1 {[%clk 0:00:33]} 26. Nxh1 {[%clk 0:00:12]}  Ng2 {[%clk 0:00:33]} 27. Red1 {[%clk 0:00:09]}  Bd6 {[%clk 0:00:32]} 28. Ng3 {[%clk 0:00:06]}  Bxf4 {[%clk 0:00:20]} 29. Bxf4 {[%clk 0:00:06]}  Nxf4 {[%clk 0:00:16]} 30. b4 {[%clk 0:00:06]}  c4 {[%clk 0:00:14]} 31. Qxa7 {[%clk 0:00:03]}  Ng2 {[%clk 0:00:11]} 0-1


[Site "https://www.chess.com"]

[Event "Titled Tuesday Blitz March 28 Early 2023"]
[White "Fernandez Sanchez, Mario Andres"]
[Black "Abdilkhair, Abilmansur"]
[WhiteFideId "6501621"]
[BlackFideId "13716417"]
[WhiteElo "2050"]
[BlackElo "2216"]
[Result "1-0"]
[Round "06"]
[TimeControl "180+2"]
[Date "2023.03.28"]
[WhiteClock "0:00:35"]
[BlackClock "0:00:13"]

1. d4 {[%clk 0:03:00]}  Nf6 {[%clk 0:02:57]} 2. Bf4 {[%clk 0:03:00]}  g6 {[%clk 0:02:55]} 3. Nc3 {[%clk 0:03:00]}  Bg7 {[%clk 0:02:56]} 4. e4 {[%clk 0:03:00]}  d6 {[%clk 0:02:56]} 5. h4 {[%clk 0:02:58]}  h5 {[%clk 0:02:52]} 6. Qd2 {[%clk 0:02:56]}  Nbd7 {[%clk 0:02:47]} 7. Nf3 {[%clk 0:02:53]}  c5 {[%clk 0:02:46]} 8. O-O-O {[%clk 0:02:50]}  cxd4 {[%clk 0:02:41]} 9. Nxd4 {[%clk 0:02:46]}  e5 {[%clk 0:02:41]} 10. Ndb5 {[%clk 0:02:42]}  exf4 {[%clk 0:02:40]} 11. Nxd6+ {[%clk 0:02:40]}  Kf8 {[%clk 0:02:40]} 12. Kb1 {[%clk 0:02:24]}  Nc5 {[%clk 0:01:42]} 13. Qxf4 {[%clk 0:02:19]}  Ne6 {[%clk 0:01:25]} 14. Qf3 {[%clk 0:02:13]}  Qa5 {[%clk 0:01:21]} 15. Nd5 {[%clk 0:01:55]}  Bd7 {[%clk 0:00:46]} 16. Nxf6 {[%clk 0:01:51]}  Bc6 {[%clk 0:00:28]} 17. Nd5 {[%clk 0:01:47]}  Nd8 {[%clk 0:00:15]} 18. Bc4 {[%clk 0:01:41]}  Be5 {[%clk 0:00:11]} 19. Nxf7 {[%clk 0:01:30]}  Nxf7 {[%clk 0:00:09]} 20. Nb6 {[%clk 0:01:30]}  Rh7 {[%clk 0:00:06]} 21. Nxa8 {[%clk 0:01:27]}  Qb4 {[%clk 0:00:03]} 22. Bb3 {[%clk 0:01:03]}  b6 {[%clk 0:00:03]} 23. a3 {[%clk 0:00:56]}  Qc5 {[%clk 0:00:03]} 24. Rd5 {[%clk 0:00:54]}  Qe7 {[%clk 0:00:03]} 25. Rhd1 {[%clk 0:00:50]}  Bxa8 {[%clk 0:00:03]} 26. Rd8+ {[%clk 0:00:48]}  Kg7 {[%clk 0:00:03]} 27. Qxf7+ {[%clk 0:00:44]}  Qxf7 {[%clk 0:00:03]} 28. Bxf7 {[%clk 0:00:45]}  Bxe4 {[%clk 0:00:03]} 29. R8d7 {[%clk 0:00:42]}  Kh6 {[%clk 0:00:03]} 30. Bb3 {[%clk 0:00:38]}  Rh8 {[%clk 0:00:03]} 31. Rxa7 {[%clk 0:00:36]}  Bf5 {[%clk 0:00:03]} 32. g3 {[%clk 0:00:33]}  Rd8 {[%clk 0:00:03]} 33. Rxd8 {[%clk 0:00:33]}  Bf6 {[%clk 0:00:03]} 34. Rdd7 {[%clk 0:00:31]}  Bxd7 {[%clk 0:00:03]} 35. Rxd7 {[%clk 0:00:32]}  g5 {[%clk 0:00:04]} 36. Rd6 {[%clk 0:00:32]}  Kg7 {[%clk 0:00:03]} 37. hxg5 {[%clk 0:00:32]}  Bxg5 {[%clk 0:00:04]} 38. f4 {[%clk 0:00:32]}  Be7 {[%clk 0:00:04]} 39. Rd7 {[%clk 0:00:32]}  Kf6 {[%clk 0:00:05]} 40. Rxe7 {[%clk 0:00:32]}  Kxe7 {[%clk 0:00:05]} 41. c4 {[%clk 0:00:33]}  Kd6 {[%clk 0:00:06]} 42. Kc2 {[%clk 0:00:34]}  Kc5 {[%clk 0:00:07]} 43. Kc3 {[%clk 0:00:34]}  b5 {[%clk 0:00:06]} 44. Bc2 {[%clk 0:00:34]}  bxc4 {[%clk 0:00:05]} 45. Bg6 {[%clk 0:00:34]}  Kd5 {[%clk 0:00:05]} 46. Bxh5 {[%clk 0:00:35]}  Kc5 {[%clk 0:00:06]} 47. f5 {[%clk 0:00:35]}  Kd5 {[%clk 0:00:07]} 48. f6 {[%clk 0:00:35]}  Ke6 {[%clk 0:00:08]} 49. f7 {[%clk 0:00:36]}  Kf6 {[%clk 0:00:09]} 50. f8=Q+ {[%clk 0:00:35]}  Kg5 {[%clk 0:00:09]} 51. Qf4+ {[%clk 0:00:35]}  Kxh5 {[%clk 0:00:09]} 52. g4+ {[%clk 0:00:35]}  Kg6 {[%clk 0:00:10]} 53. Qf5+ {[%clk 0:00:36]}  Kh6 {[%clk 0:00:10]} 54. g5+ {[%clk 0:00:36]}  Kh5 {[%clk 0:00:11]} 55. g6+ {[%clk 0:00:36]}  Kh4 {[%clk 0:00:11]} 56. g7 {[%clk 0:00:35]}  Kg3 {[%clk 0:00:12]} 57. g8=Q+ {[%clk 0:00:35]}  Kh4 {[%clk 0:00:13]} 58. Qfh7# {[%clk 0:00:35]} 1-0


[Site "https://www.chess.com"]

[Event "Titled Tuesday Blitz March 28 Early 2023"]
[White "Forgacs, Attila Jr."]
[Black "mjelcic"]
[WhiteFideId "773654"]
[WhiteElo "2168"]
[BlackElo "2233"]
[Result "0-1"]
[Round "06"]
[TimeControl "180+2"]
[Date "2023.03.28"]
[WhiteClock "0:00:06"]
[BlackClock "0:00:19"]

1. a3 {[%clk 0:03:00]}  g6 {[%clk 0:02:58]} 2. g3 {[%clk 0:02:56]}  Bg7 {[%clk 0:02:58]} 3. Bg2 {[%clk 0:02:57]}  Nf6 {[%clk 0:02:54]} 4. Nf3 {[%clk 0:02:57]}  O-O {[%clk 0:02:54]} 5. O-O {[%clk 0:02:57]}  d6 {[%clk 0:02:54]} 6. d3 {[%clk 0:02:57]}  e5 {[%clk 0:02:50]} 7. e4 {[%clk 0:02:58]}  c6 {[%clk 0:02:42]} 8. Ne1 {[%clk 0:02:57]}  d5 {[%clk 0:02:37]} 9. Nd2 {[%clk 0:02:48]}  Be6 {[%clk 0:02:35]} 10. f4 {[%clk 0:02:45]}  Qb6+ {[%clk 0:02:30]} 11. Kh1 {[%clk 0:02:42]}  Ng4 {[%clk 0:02:22]} 12. Qe2 {[%clk 0:02:39]}  exf4 {[%clk 0:02:08]} 13. gxf4 {[%clk 0:02:36]}  Ne3 {[%clk 0:01:59]} 14. Rf2 {[%clk 0:02:18]}  Bg4 {[%clk 0:01:51]} 15. Bf3 {[%clk 0:02:01]}  Bxf3+ {[%clk 0:01:40]} 16. Ndxf3 {[%clk 0:02:02]}  dxe4 {[%clk 0:01:39]} 17. dxe4 {[%clk 0:01:37]}  Ng4 {[%clk 0:01:38]} 18. Rg2 {[%clk 0:01:34]}  Nf6 {[%clk 0:01:34]} 19. Nd3 {[%clk 0:01:26]}  Nbd7 {[%clk 0:01:26]} 20. Be3 {[%clk 0:01:25]}  Qc7 {[%clk 0:01:25]} 21. Bd4 {[%clk 0:01:12]}  Rfe8 {[%clk 0:01:24]} 22. Nde5 {[%clk 0:01:09]}  c5 {[%clk 0:01:19]} 23. Bc3 {[%clk 0:01:06]}  Nh5 {[%clk 0:01:15]} 24. Qc4 {[%clk 0:00:56]}  Nxe5 {[%clk 0:01:09]} 25. Nxe5 {[%clk 0:00:52]}  Nxf4 {[%clk 0:01:07]} 26. Ng4 {[%clk 0:00:18]}  Nxg2 {[%clk 0:00:59]} 27. Bxg7 {[%clk 0:00:18]}  Kxg7 {[%clk 0:00:57]} 28. Qc3+ {[%clk 0:00:17]}  Kf8 {[%clk 0:00:49]} 29. Qh8+ {[%clk 0:00:16]}  Ke7 {[%clk 0:00:49]} 30. Qf6+ {[%clk 0:00:17]}  Kd7 {[%clk 0:00:47]} 31. Rd1+ {[%clk 0:00:15]}  Kc8 {[%clk 0:00:45]} 32. Kxg2 {[%clk 0:00:15]}  b6 {[%clk 0:00:39]} 33. Rd6 {[%clk 0:00:12]}  Kb7 {[%clk 0:00:39]} 34. e5 {[%clk 0:00:12]}  Rad8 {[%clk 0:00:39]} 35. Qf3+ {[%clk 0:00:11]}  Kb8 {[%clk 0:00:38]} 36. Nf6 {[%clk 0:00:09]}  Rxe5 {[%clk 0:00:29]} 37. Rc6 {[%clk 0:00:05]}  Qb7 {[%clk 0:00:25]} 38. Ng4 {[%clk 0:00:05]}  Re6 {[%clk 0:00:24]} 39. Rxe6 {[%clk 0:00:04]}  Qxf3+ {[%clk 0:00:23]} 40. Kxf3 {[%clk 0:00:05]}  fxe6 {[%clk 0:00:24]} 41. Ke3 {[%clk 0:00:06]}  Kc7 {[%clk 0:00:21]} 42. Nf6 {[%clk 0:00:06]}  h5 {[%clk 0:00:19]} 43. Ne4 {[%clk 0:00:06]}  Rd5 {[%clk 0:00:18]} 44. Nf6 {[%clk 0:00:06]}  Rg5 {[%clk 0:00:18]} 45. h4 {[%clk 0:00:03]}  Rf5 {[%clk 0:00:18]} 46. Ne4 {[%clk 0:00:03]}  Kc6 {[%clk 0:00:17]} 47. Ng3 {[%clk 0:00:02]}  Re5+ {[%clk 0:00:16]} 48. Kd3 {[%clk 0:00:02]}  Re1 {[%clk 0:00:16]} 49. Ne4 {[%clk 0:00:02]}  Rh1 {[%clk 0:00:16]} 50. Nf6 {[%clk 0:00:01]}  Rh3+ {[%clk 0:00:16]} 51. Kd2 {[%clk 0:00:01]}  Rxh4 {[%clk 0:00:16]} 52. Nh7 {[%clk 0:00:01]}  Rh2+ {[%clk 0:00:16]} 53. Kd3 {[%clk 0:00:01]}  Rg2 {[%clk 0:00:15]} 54. Nf6 {[%clk 0:00:02]}  h4 {[%clk 0:00:16]} 55. Ke3 {[%clk 0:00:02]}  h3 {[%clk 0:00:16]} 56. Kf3 {[%clk 0:00:02]}  Rxc2 {[%clk 0:00:16]} 57. Ng4 {[%clk 0:00:03]}  Rxb2 {[%clk 0:00:16]} 58. Kg3 {[%clk 0:00:04]}  Rb3+ {[%clk 0:00:16]} 59. Kh2 {[%clk 0:00:04]}  Rxa3 {[%clk 0:00:16]} 60. Ne5+ {[%clk 0:00:05]}  Kd5 {[%clk 0:00:17]} 61. Ng4 {[%clk 0:00:05]}  c4 {[%clk 0:00:17]} 62. Nf2 {[%clk 0:00:04]}  Ra2 {[%clk 0:00:17]} 63. Kg1 {[%clk 0:00:04]}  Rxf2 {[%clk 0:00:18]} 64. Kh1 {[%clk 0:00:03]}  c3 {[%clk 0:00:17]} 65. Kg1 {[%clk 0:00:03]}  Rd2 {[%clk 0:00:18]} 66. Kf1 {[%clk 0:00:03]}  Kd4 {[%clk 0:00:18]} 67. Ke1 {[%clk 0:00:04]}  Kd3 {[%clk 0:00:19]} 68. Kf1 {[%clk 0:00:05]}  c2 {[%clk 0:00:19]} 69. Ke1 {[%clk 0:00:06]}  c1=R# {[%clk 0:00:19]} 0-1


[Site "https://www.chess.com"]

[Event "Titled Tuesday Blitz March 28 Early 2023"]
[White "Quirke, Jeffrey"]
[Black "Deng, Henry"]
[WhiteFideId "2013029"]
[BlackFideId "30965454"]
[WhiteElo "2231"]
[BlackElo "2458"]
[Result "1-0"]
[Round "06"]
[TimeControl "180+2"]
[Date "2023.03.28"]
[WhiteClock "0:00:10"]
[BlackClock "0:00:38"]

1. e4 {[%clk 0:03:00]}  c5 {[%clk 0:02:59]} 2. Nc3 {[%clk 0:02:59]}  e6 {[%clk 0:02:57]} 3. g3 {[%clk 0:02:56]}  d5 {[%clk 0:02:57]} 4. exd5 {[%clk 0:02:55]}  exd5 {[%clk 0:02:58]} 5. d4 {[%clk 0:02:50]}  cxd4 {[%clk 0:02:59]} 6. Qxd4 {[%clk 0:02:42]}  Nf6 {[%clk 0:02:58]} 7. Bg5 {[%clk 0:02:27]}  Nc6 {[%clk 0:02:54]} 8. Bxf6 {[%clk 0:02:21]}  Nxd4 {[%clk 0:02:53]} 9. Bxd8 {[%clk 0:02:20]}  Nxc2+ {[%clk 0:02:53]} 10. Kd2 {[%clk 0:02:18]}  Nxa1 {[%clk 0:02:54]} 11. Bg5 {[%clk 0:02:11]}  d4 {[%clk 0:02:44]} 12. Nb5 {[%clk 0:02:04]}  f6 {[%clk 0:02:44]} 13. Bf4 {[%clk 0:01:28]}  g5 {[%clk 0:02:42]} 14. Bd6 {[%clk 0:01:20]}  Bf5 {[%clk 0:02:28]} 15. Bd3 {[%clk 0:01:07]}  Bxd3 {[%clk 0:02:10]} 16. Kxd3 {[%clk 0:01:08]}  Rc8 {[%clk 0:02:00]} 17. Bxf8 {[%clk 0:00:59]}  Kxf8 {[%clk 0:01:58]} 18. Nxd4 {[%clk 0:00:59]}  Rc1 {[%clk 0:01:56]} 19. Nde2 {[%clk 0:00:34]}  Rd1+ {[%clk 0:01:54]} 20. Kc3 {[%clk 0:00:32]}  Kf7 {[%clk 0:01:55]} 21. h4 {[%clk 0:00:28]}  Rc8+ {[%clk 0:01:53]} 22. Kb4 {[%clk 0:00:28]}  Nc2+ {[%clk 0:01:48]} 23. Kb3 {[%clk 0:00:26]}  Rd3+ {[%clk 0:01:47]} 24. Ka4 {[%clk 0:00:26]}  Rc4+ {[%clk 0:01:43]} 25. Kb5 {[%clk 0:00:25]}  Rc6 {[%clk 0:01:34]} 26. hxg5 {[%clk 0:00:22]}  a6+ {[%clk 0:01:31]} 27. Ka4 {[%clk 0:00:20]}  Kg6 {[%clk 0:01:06]} 28. gxf6 {[%clk 0:00:19]}  Kxf6 {[%clk 0:01:05]} 29. Rxh7 {[%clk 0:00:18]}  b6 {[%clk 0:00:57]} 30. Rh6+ {[%clk 0:00:18]}  Ke5 {[%clk 0:00:57]} 31. Rxc6 {[%clk 0:00:18]}  Nd4 {[%clk 0:00:56]} 32. Rxb6 {[%clk 0:00:17]}  Ne6 {[%clk 0:00:52]} 33. f4+ {[%clk 0:00:15]}  Kf5 {[%clk 0:00:51]} 34. Nf3 {[%clk 0:00:12]}  Rxf3 {[%clk 0:00:50]} 35. Rxe6 {[%clk 0:00:12]}  Rf2 {[%clk 0:00:50]} 36. Nd4+ {[%clk 0:00:11]}  Kg4 {[%clk 0:00:51]} 37. Rg6+ {[%clk 0:00:11]}  Kh3 {[%clk 0:00:50]} 38. Kb3 {[%clk 0:00:10]}  Rd2 {[%clk 0:00:49]} 39. Kc3 {[%clk 0:00:09]}  Rd1 {[%clk 0:00:49]} 40. f5 {[%clk 0:00:09]}  Rf1 {[%clk 0:00:49]} 41. g4 {[%clk 0:00:08]}  Kh4 {[%clk 0:00:49]} 42. Rxa6 {[%clk 0:00:08]}  Kxg4 {[%clk 0:00:50]} 43. f6 {[%clk 0:00:08]}  Kg5 {[%clk 0:00:49]} 44. a4 {[%clk 0:00:08]}  Rc1+ {[%clk 0:00:48]} 45. Nc2 {[%clk 0:00:07]}  Rf1 {[%clk 0:00:48]} 46. Rb6 {[%clk 0:00:08]}  Rf3+ {[%clk 0:00:48]} 47. Kb4 {[%clk 0:00:07]}  Rf4+ {[%clk 0:00:49]} 48. Ka3 {[%clk 0:00:06]}  Kg6 {[%clk 0:00:48]} 49. b3 {[%clk 0:00:06]}  Kf7 {[%clk 0:00:48]} 50. Nb4 {[%clk 0:00:06]}  Rf5 {[%clk 0:00:48]} 51. a5 {[%clk 0:00:06]}  Rxa5+ {[%clk 0:00:49]} 52. Kb2 {[%clk 0:00:07]}  Rc5 {[%clk 0:00:49]} 53. Nd3 {[%clk 0:00:05]}  Rd5 {[%clk 0:00:49]} 54. Kc3 {[%clk 0:00:05]}  Rf5 {[%clk 0:00:47]} 55. Kc4 {[%clk 0:00:05]}  Rf4+ {[%clk 0:00:48]} 56. Kc5 {[%clk 0:00:06]}  Rf3 {[%clk 0:00:48]} 57. Nb4 {[%clk 0:00:05]}  Rf5+ {[%clk 0:00:48]} 58. Nd5 {[%clk 0:00:06]}  Rh5 {[%clk 0:00:47]} 59. b4 {[%clk 0:00:06]}  Rh1 {[%clk 0:00:45]} 60. b5 {[%clk 0:00:07]}  Rc1+ {[%clk 0:00:45]} 61. Kd6 {[%clk 0:00:07]}  Rb1 {[%clk 0:00:43]} 62. Rb7+ {[%clk 0:00:08]}  Kf8 {[%clk 0:00:43]} 63. f7 {[%clk 0:00:07]}  Rd1 {[%clk 0:00:42]} 64. b6 {[%clk 0:00:08]}  Rb1 {[%clk 0:00:42]} 65. Rc7 {[%clk 0:00:07]}  Kg7 {[%clk 0:00:39]} 66. b7 {[%clk 0:00:07]}  Rb5 {[%clk 0:00:38]} 67. f8=Q+ {[%clk 0:00:08]}  Kxf8 {[%clk 0:00:38]} 68. Rc8+ {[%clk 0:00:08]}  Kf7 {[%clk 0:00:38]} 69. b8=Q {[%clk 0:00:09]}  Rxb8 {[%clk 0:00:37]} 70. Rxb8 {[%clk 0:00:10]}  Kg6 {[%clk 0:00:38]} 71. Ke5 {[%clk 0:00:10]} 1-0


[Site "https://www.chess.com"]